[Event "EYCC 2017"]
[Site "Mamaia"]
[Date "2017.09.05"]
[Round "1"]
[White "Fiszer, Bartosz"]
[Black "Kayan, Yasar Efe"]
[Result "1/2-1/2"]
[ECO "B45"]
[WhiteElo "1901"]
[BlackElo "1421"]
[Annotator "NA RC"]
[PlyCount "119"]
[EventDate "2017.??.??"]
[EventType "swiss"]
[EventCountry "ROU"]
[SourceTitle "playchess.com"]
[Source "ChessBase"]
[SourceQuality "1"]
[TimeControl "40/5400+30:1800+30"]

1. e4 {[%emt 0:00:00]} c5 {[%emt 0:00:05]} 2. Nf3 {[%emt 0:00:00]} e6 {[%emt 0:00:06]} 3. d4 {[%emt 0:00:00]} cxd4 {[%emt 0:00:10]} 4. Nxd4 {[%emt 0:00:00]} Nc6 {[%emt 0:00:04]} 5. Nc3 {[%emt 0:00:52]} Bb4 {[%emt 0:00:09]} 6. Ndb5 {[%emt 0:00:38]} Nf6 {[%emt 0:00:17]} 7. a3 {[%emt 0:00:56]} Bxc3+ {[%emt 0:00:16]} 8. Nxc3 {[%emt 0:00:08]} d5 {[%emt 0:09:08]} 9. exd5 {[%emt 0:00:14]} Nxd5 {[%emt 0:00:44]} 10. Bd2 {[%emt 0:05:36]} O-O {[%emt 0:03:19]} 11. Bd3 {[%emt 0:00:57]} Nce7 {[%emt 0:04:27]} 12. Qh5 {[%emt 0:15:39]} Ng6 {[%emt 0:01:28]} 13. Qf3 {[%emt 0:06:40]} b6 {[%emt 0:02:06]} 14. h4 {[%emt 0:05:41]} Qf6 {[%emt 0:07:39]} 15. Qxf6 {[%emt 0:19:24]} Nxf6 {[%emt 0:00:12]} 16. Ne4 {[%emt 0:01:13]} Nd5 {[%emt 0:01:56]} 17. Nd6 {[%emt 0:01:15]} Rd8 {[%emt 0:02:41]} 18. Nxc8 {[%emt 0:00:40]} Raxc8 {[%emt 0:00:00]} 19. O-O-O {[%emt 0:10:24]} Ndf4 {[%emt 0:05:06]} 20. Bxf4 {[%emt 0:05:18]} Nxf4 {[%emt 0:00:22]} 21. Ba6 {[%emt 0:00:22]} Rb8 {[%emt 0:02:05]} 22. Rxd8+ {[%emt 0:03:20]} Rxd8 {[%emt 0:00:12]} 23. g3 {[%emt 0:00:06]} Ng6 {[%emt 0:01:46]} 24. Rd1 {[%emt 0:02:30]} Rxd1+ {[%emt 0:00:15]} 25. Kxd1 {[%emt 0:00:04]} f5 {[%emt 0:00:10]} 26. Ke2 {[%emt 0:00:56]} Kf7 {[%emt 0:00:11]} 27. Ke3 {[%emt 0:01:51]} Kf6 {[%emt 0:00:34]} 28. Kd4 {[%emt 0:00:46]} Ne7 {[%emt 0:03:13]} 29. Bb7 {[%emt 0:00:42]} e5+ {[%emt 0:00:28]} 30. Kc4 {[%emt 0:00:21]} f4 {[%emt 0:00:38]} 31. g4 {[%emt 0:03:14]} Ke6 {[%emt 0:04:36]} 32. Be4 {[%emt 0:00:35]} g6 {[%emt 0:01:01]} 33. Kb5 {[%emt 0:00:51]} Nc8 {[%emt 0:01:37]} 34. Kc6 {[%emt 0:02:15]} Nd6 {[%emt 0:01:23]} 35. Bd5+ {[%emt 0:00:07]} Ke7 {[%emt 0:00:59]} 36. f3 {[%emt 0:00:26]} e4 {[%emt 0:02:32]} 37. fxe4 {[%emt 0:00:08]} f3 {[%emt 0:00:04]} 38. e5 {[%emt 0:00:28]} Nf7 {[%emt 0:00:05]} 39. Kb7 {[%emt 0:01:29]} f2 {[%emt 0:00:09]} 40. Bg2 {[%emt 0:00:00]} Nxe5 {[%emt 0:00:20]} 41. Kxa7 {[%emt 0:01:44]} Nxg4 {[%emt 0:00:57]} 42. Kxb6 {[%emt 0:00:27]} Ne3 {[%emt 0:00:34]} 43. Bh3 {[%emt 0:00:09]} h6 {[%emt 0:00:43]} 44. Kc5 {[%emt 0:00:54]} g5 {[%emt 0:03:21]} 45. hxg5 {[%emt 0:01:03]} hxg5 {[%emt 0:00:13]} 46. Kd4 {[%emt 0:00:51]} Nxc2+ {[%emt 0:00:39]} 47. Kd3 {[%emt 0:00:35]} g4 {[%emt 0:00:32]} 48. Bf1 {[%emt 0:00:19]} Ne1+ {[%emt 0:00:15]} 49. Ke3 {[%emt 0:00:31]} g3 {[%emt 0:00:10]} 50. a4 {[%emt 0:00:58]} g2 {[%emt 0:02:17]} 51. Bxg2 {[%emt 0:00:17]} Nxg2+ {[%emt 0:00:06]} 52. Kxf2 {[%emt 0:00:06]} Nf4 {[%emt 0:00:06]} 53. Ke3 {[%emt 0:00:07]} Nd5+ {[%emt 0:00:08]} 54. Kd4 {[%emt 0:00:08]} Kd6 {[%emt 0:00:09]} 55. a5 {[%emt 0:00:07]} Nc7 {[%emt 0:00:11]} 56. Kc4 {[%emt 0:00:14]} Kc6 {[%emt 0:00:14]} 57. Kb4 {[%emt 0:00:06]} Na6+ {[%emt 0:00:08]} 58. Kc4 {[%emt 0:00:09]} Nc7 {[%emt 0:00:26]} 59. b4 {[%emt 0:00:06]} Nb5 {[%emt 0:00:21]} 60. Kb3 {[%emt 0:00:16]} 1/2-1/2

[Event "EYCC 2017"]
[Site "Mamaia"]
[Date "2017.09.05"]
[Round "1"]
[White "Reuter, Elisa"]
[Black "Jovanovic, Anja"]
[Result "1-0"]
[ECO "C54"]
[WhiteElo "1882"]
[BlackElo "1491"]
[Annotator "NA RC"]
[PlyCount "121"]
[EventDate "2017.??.??"]
[EventType "swiss"]
[EventCountry "ROU"]
[SourceTitle "playchess.com"]
[Source "ChessBase"]
[SourceQuality "1"]
[TimeControl "40/5400+30:1800+30"]

1. e4 {[%emt 0:00:00]} e5 {[%emt 0:00:08]} 2. Nf3 {[%emt 0:00:00]} Nc6 {[%emt 0:00:06]} 3. Bc4 {[%emt 0:00:00]} Bc5 {[%emt 0:00:08]} 4. c3 {[%emt 0:00:00]} Nf6 {[%emt 0:00:07]} 5. d3 {[%emt 0:00:00]} d6 {[%emt 0:00:07]} 6. O-O {[%emt 0:00:00]} O-O {[%emt 0:00:06]} 7. Bb3 {[%emt 0:00:18]} Bg4 {[%emt 0:00:12]} 8. h3 {[%emt 0:00:06]} Bh5 {[%emt 0:00:07]} 9. Re1 {[%emt 0:00:35]} Re8 {[%emt 0:00:46]} 10. Nbd2 {[%emt 0:00:09]} d5 {[%emt 0:01:55]} 11. exd5 {[%emt 0:02:16]} Nxd5 {[%emt 0:00:20]} 12. Ne4 {[%emt 0:00:11]} Bb6 {[%emt 0:00:52]} 13. Ng3 {[%emt 0:01:23]} Bg6 {[%emt 0:00:51]} 14. Bg5 {[%emt 0:03:49]} Qd6 {[%emt 0:02:32]} 15. Ne4 {[%emt 0:01:57]} Bxe4 {[%emt 0:02:15]} 16. dxe4 {[%emt 0:00:25]} Nde7 {[%emt 0:00:40]} 17. Qxd6 {[%emt 0:00:22]} cxd6 {[%emt 0:00:09]} 18. Rad1 {[%emt 0:01:14]} Rad8 {[%emt 0:00:49]} 19. Rd2 {[%emt 0:04:18]} h6 {[%emt 0:04:36]} 20. Be3 {[%emt 0:05:58]} Bxe3 {[%emt 0:01:41]} 21. Rxe3 {[%emt 0:00:13]} a6 {[%emt 0:01:31]} 22. Red3 {[%emt 0:02:03]} Nc8 {[%emt 0:00:30]} 23. Nh4 {[%emt 0:01:46]} Rd7 {[%emt 0:01:54]} 24. Nf5 {[%emt 0:02:54]} Red8 {[%emt 0:00:53]} 25. Rg3 {[%emt 0:00:27]} Kh8 {[%emt 0:09:54]} 26. Rxg7 {[%emt 0:00:51]} f6 {[%emt 0:01:18]} 27. Rxd7 {[%emt 0:00:26]} Rxd7 {[%emt 0:00:10]} 28. Be6 {[%emt 0:00:04]} Rc7 {[%emt 0:00:17]} 29. Bxc8 {[%emt 0:00:13]} Rxc8 {[%emt 0:00:06]} 30. Rxd6 {[%emt 0:00:14]} Rd8 {[%emt 0:00:26]} 31. Rxd8+ {[%emt 0:00:07]} Nxd8 {[%emt 0:00:06]} 32. Nxh6 {[%emt 0:00:20]} Kg7 {[%emt 0:00:19]} 33. Nf5+ {[%emt 0:00:06]} Kg6 {[%emt 0:00:18]} 34. f3 {[%emt 0:00:18]} Ne6 {[%emt 0:00:12]} 35. Ne7+ {[%emt 0:02:22]} Kf7 {[%emt 0:00:09]} 36. Nd5 {[%emt 0:00:13]} Nc5 {[%emt 0:00:24]} 37. b4 {[%emt 0:01:10]} Na4 {[%emt 0:00:23]} 38. Kf2 {[%emt 0:00:17]} Ke6 {[%emt 0:00:19]} 39. g4 {[%emt 0:00:35]} Kf7 {[%emt 0:00:10]} 40. Kg3 {[%emt 0:00:00]} Nb2 {[%emt 0:00:20]} 41. h4 {[%emt 0:00:58]} Nd3 {[%emt 0:00:12]} 42. h5 {[%emt 0:00:23]} Kg7 {[%emt 0:00:12]} 43. a4 {[%emt 0:00:33]} Nb2 {[%emt 0:00:12]} 44. a5 {[%emt 0:00:14]} Nc4 {[%emt 0:00:12]} 45. f4 {[%emt 0:00:52]} exf4+ {[%emt 0:00:09]} 46. Kxf4 {[%emt 0:00:05]} Ne5 {[%emt 0:00:22]} 47. Kf5 {[%emt 0:00:34]} Nf7 {[%emt 0:00:14]} 48. Nxf6 {[%emt 0:01:14]} Nh6+ {[%emt 0:00:15]} 49. Ke6 {[%emt 0:00:14]} Nf7 {[%emt 0:00:20]} 50. Ne8+ {[%emt 0:00:42]} Kf8 {[%emt 0:00:11]} 51. Nd6 {[%emt 0:00:24]} Ng5+ {[%emt 0:00:28]} 52. Kf5 {[%emt 0:00:22]} Nf3 {[%emt 0:00:18]} 53. g5 {[%emt 0:00:20]} Nh4+ {[%emt 0:00:14]} 54. Kg4 {[%emt 0:00:19]} Ng2 {[%emt 0:00:09]} 55. Nxb7 {[%emt 0:00:31]} Ne3+ {[%emt 0:00:11]} 56. Kf3 {[%emt 0:00:08]} Nc4 {[%emt 0:00:08]} 57. Nc5 {[%emt 0:00:33]} Ne5+ {[%emt 0:00:20]} 58. Kf4 {[%emt 0:00:11]} Nf7 {[%emt 0:00:12]} 59. b5 {[%emt 0:00:21]} axb5 {[%emt 0:00:10]} 60. a6 {[%emt 0:00:03]} Kg7 {[%emt 0:00:14]} 61. a7 {[%emt 0:00:06]} 1-0

[Event "EYCC 2017"]
[Site "Mamaia"]
[Date "2017.09.05"]
[Round "1"]
[White "Toth, Nikoletta"]
[Black "Dakic, Marta"]
[Result "1/2-1/2"]
[ECO "C41"]
[WhiteElo "1864"]
[BlackElo "1602"]
[Annotator "NA RC"]
[PlyCount "112"]
[EventDate "2017.??.??"]
[EventType "swiss"]
[EventCountry "ROU"]
[SourceTitle "playchess.com"]
[Source "ChessBase"]
[SourceQuality "1"]
[TimeControl "40/5400+30:1800+30"]

1. e4 {[%emt 0:00:00]} e5 {[%emt 0:00:06]} 2. Nf3 {[%emt 0:00:00]} d6 {[%emt 0:00:07]} 3. d4 {[%emt 0:03:23]} exd4 {[%emt 0:00:12]} 4. Nxd4 {[%emt 0:00:14]} Nf6 {[%emt 0:00:12]} 5. Nc3 {[%emt 0:00:12]} Nc6 {[%emt 0:00:59]} 6. Nxc6 {[%emt 0:02:20]} bxc6 {[%emt 0:00:07]} 7. Bd3 {[%emt 0:01:14]} Be7 {[%emt 0:01:34]} 8. O-O {[%emt 0:00:04]} O-O {[%emt 0:00:10]} 9. f4 {[%emt 0:00:46]} d5 {[%emt 0:02:26]} 10. e5 {[%emt 0:01:40]} Bc5+ {[%emt 0:00:38]} 11. Kh1 {[%emt 0:00:02]} Ng4 {[%emt 0:00:45]} 12. Qe1 {[%emt 0:01:22]} f6 {[%emt 0:06:25]} 13. h3 {[%emt 0:06:32]} Nf2+ {[%emt 0:08:05]} 14. Kh2 {[%emt 0:00:43]} Nxd3 {[%emt 0:00:40]} 15. cxd3 {[%emt 0:00:38]} fxe5 {[%emt 0:01:18]} 16. fxe5 {[%emt 0:00:18]} Rxf1 {[%emt 0:01:11]} 17. Qxf1 {[%emt 0:00:12]} Qe7 {[%emt 0:00:17]} 18. Qe2 {[%emt 0:03:06]} Bd4 {[%emt 0:00:51]} 19. Bf4 {[%emt 0:00:55]} Bd7 {[%emt 0:02:07]} 20. Re1 {[%emt 0:00:44]} Rf8 {[%emt 0:01:50]} 21. Qd2 {[%emt 0:00:34]} Qf7 {[%emt 0:04:13]} 22. Ne2 {[%emt 0:01:44]} Bf2 {[%emt 0:06:38]} 23. Rf1 {[%emt 0:01:51]} Bh4 {[%emt 0:02:42]} 24. Rf3 {[%emt 0:03:21]} Be7 {[%emt 0:01:57]} 25. Qe3 {[%emt 0:07:15]} c5 {[%emt 0:01:31]} 26. Bg3 {[%emt 0:20:46]} Qe6 {[%emt 0:04:07]} 27. Nf4 {[%emt 0:03:26]} Qc6 {[%emt 0:05:40]} 28. e6 {[%emt 0:02:54]} d4 {[%emt 0:01:28]} 29. Qe5 {[%emt 0:05:22]} Bd6 {[%emt 0:00:51]} 30. Qg5 {[%emt 0:02:28]} Bxf4 {[%emt 0:00:40]} 31. Bxf4 {[%emt 0:00:28]} Qxe6 {[%emt 0:07:49]} 32. Be5 {[%emt 0:00:53]} Rf7 {[%emt 0:03:36]} 33. Rxf7 {[%emt 0:00:32]} Qxf7 {[%emt 0:00:07]} 34. Qd8+ {[%emt 0:00:31]} Be8 {[%emt 0:03:20]} 35. Bxc7 {[%emt 0:01:03]} Qd7 {[%emt 0:04:33]} 36. Qxd7 {[%emt 0:01:14]} Bxd7 {[%emt 0:00:07]} 37. Bd6 {[%emt 0:02:04]} Be6 {[%emt 0:02:12]} 38. Bxc5 {[%emt 0:02:07]} Bxa2 {[%emt 0:00:10]} 39. Bxd4 {[%emt 0:00:54]} Bb1 {[%emt 0:00:14]} 40. Bxa7 {[%emt 0:00:00]} Bxd3 {[%emt 0:00:07]} 41. b4 {[%emt 0:00:18]} Kf7 {[%emt 0:00:30]} 42. Kg3 {[%emt 0:00:47]} g6 {[%emt 0:02:00]} 43. Kf3 {[%emt 0:00:09]} Ke6 {[%emt 0:00:13]} 44. g4 {[%emt 0:00:50]} Ke5 {[%emt 0:01:15]} 45. Bc5 {[%emt 0:03:10]} Be4+ {[%emt 0:01:35]} 46. Kg3 {[%emt 0:02:03]} Bd3 {[%emt 0:01:23]} 47. Kf3 {[%emt 0:00:35]} Be4+ {[%emt 0:00:06]} 48. Ke3 {[%emt 0:00:42]} Bg2 {[%emt 0:00:54]} 49. h4 {[%emt 0:01:42]} h5 {[%emt 0:00:23]} 50. gxh5 {[%emt 0:01:06]} gxh5 {[%emt 0:00:09]} 51. b5 {[%emt 0:00:19]} Kd5 {[%emt 0:00:13]} 52. Bd4 {[%emt 0:00:24]} Bf1 {[%emt 0:01:20]} 53. b6 {[%emt 0:00:22]} Kc6 {[%emt 0:00:09]} 54. Ke4 {[%emt 0:01:18]} Kb7 {[%emt 0:00:30]} 55. Ke5 {[%emt 0:00:18]} Be2 {[%emt 0:00:06]} 56. Kd6 {[%emt 0:00:26]} Bf3 {[%emt 0:00:07]} 1/2-1/2

[Event "EYCC 2017"]
[Site "Mamaia"]
[Date "2017.09.05"]
[Round "1"]
[White "Kobald, Jacqueline"]
[Black "Shafigullina, Zarina"]
[Result "0-1"]
[ECO "B33"]
[WhiteElo "1833"]
[BlackElo "2086"]
[Annotator "NA RC"]
[PlyCount "120"]
[EventDate "2017.??.??"]
[EventType "swiss"]
[EventCountry "ROU"]
[SourceTitle "playchess.com"]
[Source "ChessBase"]
[SourceQuality "1"]
[TimeControl "40/5400+30:1800+30"]

1. e4 {[%emt 0:00:00]} c5 {[%emt 0:00:04]} 2. Nf3 {[%emt 0:00:00]} Nc6 {[%emt 0:00:04]} 3. d4 {[%emt 0:00:00]} cxd4 {[%emt 0:00:17]} 4. Nxd4 {[%emt 0:00:00]} Nf6 {[%emt 0:00:04]} 5. Nc3 {[%emt 0:00:04]} e5 {[%emt 0:00:07]} 6. Ndb5 {[%emt 0:01:57]} d6 {[%emt 0:00:06]} 7. Bg5 {[%emt 0:07:13]} a6 {[%emt 0:00:05]} 8. Na3 {[%emt 0:02:24]} b5 {[%emt 0:00:07]} 9. Nd5 {[%emt 0:02:49]} Be7 {[%emt 0:00:07]} 10. Bxf6 {[%emt 0:01:43]} Bxf6 {[%emt 0:00:07]} 11. c3 {[%emt 0:03:55]} O-O {[%emt 0:00:11]} 12. Nc2 {[%emt 0:03:31]} Rb8 {[%emt 0:03:50]} 13. Be2 {[%emt 0:04:16]} Bg5 {[%emt 0:00:21]} 14. O-O {[%emt 0:04:46]} Kh8 {[%emt 0:00:17]} 15. Bg4 {[%emt 0:11:00]} g6 {[%emt 0:09:03]} 16. Nce3 {[%emt 0:09:46]} f5 {[%emt 0:03:06]} 17. Bf3 {[%emt 0:21:26]} f4 {[%emt 0:00:46]} 18. Nc2 {[%emt 0:02:51]} a5 {[%emt 0:04:20]} 19. Qd2 {[%emt 0:04:25]} Ne7 {[%emt 0:03:07]} 20. Rad1 {[%emt 0:01:46]} Bb7 {[%emt 0:01:00]} 21. Qe2 {[%emt 0:01:10]} Bc8 {[%emt 0:09:38]} 22. b3 {[%emt 0:07:07]} Be6 {[%emt 0:02:20]} 23. Nxe7 {[%emt 0:02:50]} Bxe7 {[%emt 0:00:30]} 24. Na3 {[%emt 0:02:01]} Qb6 {[%emt 0:00:56]} 25. c4 {[%emt 0:00:26]} b4 {[%emt 0:01:31]} 26. Nb5 {[%emt 0:01:04]} Bd7 {[%emt 0:01:46]} 27. Bg4 {[%emt 0:00:43]} Be8 {[%emt 0:05:59]} 28. Be6 {[%emt 0:00:42]} Rf6 {[%emt 0:02:02]} 29. Bg4 {[%emt 0:00:59]} h5 {[%emt 0:02:44]} 30. Bf3 {[%emt 0:00:02]} Kg7 {[%emt 0:02:45]} 31. h3 {[%emt 0:01:08]} Rc8 {[%emt 0:06:12]} 32. Rc1 {[%emt 0:00:51]} Rc5 {[%emt 0:01:28]} 33. Qd1 {[%emt 0:01:51]} Bd7 {[%emt 0:02:51]} 34. Qd3 {[%emt 0:00:39]} Kh6 {[%emt 0:01:30]} 35. Rfd1 {[%emt 0:00:33]} Qb8 {[%emt 0:02:39]} 36. Qe2 {[%emt 0:00:42]} Qc8 {[%emt 0:00:10]} 37. Qd2 {[%emt 0:00:30]} g5 {[%emt 0:01:03]} 38. Be2 {[%emt 0:01:10]} Rg6 {[%emt 0:28:09]} 39. f3 {[%emt 0:00:22]} Kg7 {[%emt 0:00:09]} 40. Bf1 {[%emt 0:00:00]} g4 {[%emt 0:02:51]} 41. hxg4 {[%emt 0:02:38]} hxg4 {[%emt 0:00:40]} 42. Kf2 {[%emt 0:02:28]} Bh4+ {[%emt 0:10:13]} 43. Ke2 {[%emt 0:00:31]} Rxb5 {[%emt 0:00:09]} 44. cxb5 {[%emt 0:02:40]} Bxb5+ {[%emt 0:00:04]} 45. Rc4 {[%emt 0:00:06]} Bxc4+ {[%emt 0:00:04]} 46. bxc4 {[%emt 0:00:06]} Qxc4+ {[%emt 0:00:02]} 47. Qd3 {[%emt 0:00:24]} Qxa2+ {[%emt 0:00:22]} 48. Rd2 {[%emt 0:00:02]} Qa1 {[%emt 0:00:31]} 49. Rd1 {[%emt 0:01:36]} Qb2+ {[%emt 0:00:05]} 50. Rd2 {[%emt 0:00:51]} Qc1 {[%emt 0:00:04]} 51. Rd1 {[%emt 0:00:28]} Qc5 {[%emt 0:00:04]} 52. Kd2 {[%emt 0:01:47]} Bf2 {[%emt 0:01:39]} 53. Qc4 {[%emt 0:06:13]} gxf3 {[%emt 0:06:24]} 54. gxf3 {[%emt 0:00:42]} a4 {[%emt 0:00:23]} 55. Qxc5 {[%emt 0:10:42]} dxc5 {[%emt 0:00:07]} 56. Bb5 {[%emt 0:02:26]} a3 {[%emt 0:00:19]} 57. Bc4 {[%emt 0:00:08]} Bd4 {[%emt 0:00:23]} 58. Kc2 {[%emt 0:03:55]} Kf6 {[%emt 0:01:02]} 59. Rh1 {[%emt 0:02:26]} Rg2+ {[%emt 0:00:08]} 60. Kb1 {[%emt 0:00:26]} Rb2+ {[%emt 0:00:05]} 0-1

[Event "EYCC 2017"]
[Site "Mamaia"]
[Date "2017.09.05"]
[Round "1"]
[White "Pawicka, Magdalena"]
[Black "Muradyan, Anahit"]
[Result "1-0"]
[ECO "C18"]
[WhiteElo "1790"]
[BlackElo "1306"]
[Annotator "NA RC"]
[PlyCount "133"]
[EventDate "2017.??.??"]
[EventType "swiss"]
[EventCountry "ROU"]
[SourceTitle "playchess.com"]
[Source "ChessBase"]
[SourceQuality "1"]
[TimeControl "40/5400+30:1800+30"]

1. e4 {[%emt 0:00:00]} e6 {[%emt 0:00:10]} 2. d4 {[%emt 0:00:00]} d5 {[%emt 0:00:09]} 3. Nc3 {[%emt 0:00:10]} Bb4 {[%emt 0:00:08]} 4. e5 {[%emt 0:00:29]} c5 {[%emt 0:00:29]} 5. a3 {[%emt 0:00:32]} Bxc3+ {[%emt 0:00:19]} 6. bxc3 {[%emt 0:00:29]} Ne7 {[%emt 0:00:10]} 7. Qg4 {[%emt 0:06:11]} O-O {[%emt 0:01:18]} 8. Bd3 {[%emt 0:08:33]} c4 {[%emt 0:03:25]} 9. Be2 {[%emt 0:01:59]} Nbc6 {[%emt 0:01:46]} 10. Nf3 {[%emt 0:08:01]} Qa5 {[%emt 0:05:35]} 11. Bd2 {[%emt 0:00:55]} Qa4 {[%emt 0:01:37]} 12. Kd1 {[%emt 0:08:42]} f6 {[%emt 0:01:56]} 13. h4 {[%emt 0:16:30]} fxe5 {[%emt 0:02:24]} 14. dxe5 {[%emt 0:00:15]} Qa5 {[%emt 0:11:18]} 15. h5 {[%emt 0:03:30]} Qb6 {[%emt 0:02:28]} 16. Be3 {[%emt 0:03:08]} Qc7 {[%emt 0:02:12]} 17. Bd4 {[%emt 0:02:36]} Nxd4 {[%emt 0:09:53]} 18. cxd4 {[%emt 0:00:19]} h6 {[%emt 0:00:17]} 19. Rh3 {[%emt 0:04:41]} Nf5 {[%emt 0:07:44]} 20. Nh4 {[%emt 0:03:03]} Nxh4 {[%emt 0:01:35]} 21. Qxh4 {[%emt 0:00:21]} Bd7 {[%emt 0:02:56]} 22. Rf3 {[%emt 0:04:38]} Rxf3 {[%emt 0:01:51]} 23. Bxf3 {[%emt 0:01:05]} Qb6 {[%emt 0:01:00]} 24. Kc1 {[%emt 0:04:14]} Qd8 {[%emt 0:03:06]} 25. Qxd8+ {[%emt 0:01:04]} Rxd8 {[%emt 0:00:07]} 26. Kd2 {[%emt 0:01:06]} Rf8 {[%emt 0:00:59]} 27. Ke3 {[%emt 0:00:40]} Kh7 {[%emt 0:01:01]} 28. Rh1 {[%emt 0:04:03]} g6 {[%emt 0:01:27]} 29. hxg6+ {[%emt 0:01:09]} Kxg6 {[%emt 0:00:11]} 30. Rh3 {[%emt 0:00:31]} Rf5 {[%emt 0:06:19]} 31. Bg4 {[%emt 0:02:47]} Rg5 {[%emt 0:02:38]} 32. Bf3 {[%emt 0:01:39]} Kh7 {[%emt 0:00:51]} 33. Rh4 {[%emt 0:01:41]} a5 {[%emt 0:01:39]} 34. Rf4 {[%emt 0:00:51]} b5 {[%emt 0:01:26]} 35. Rf8 {[%emt 0:03:52]} Rg8 {[%emt 0:01:02]} 36. Rxg8 {[%emt 0:00:58]} Kxg8 {[%emt 0:00:05]} 37. Kd2 {[%emt 0:00:20]} b4 {[%emt 0:00:20]} 38. axb4 {[%emt 0:00:30]} axb4 {[%emt 0:00:05]} 39. Bg4 {[%emt 0:02:03]} Kg7 {[%emt 0:00:41]} 40. Kc1 {[%emt 0:00:00]} Kg6 {[%emt 0:00:20]} 41. f4 {[%emt 0:05:18]} Kf7 {[%emt 0:00:20]} 42. Bh5+ {[%emt 0:01:16]} Ke7 {[%emt 0:00:06]} 43. Bf3 {[%emt 0:02:59]} Bc6 {[%emt 0:00:46]} 44. Bg4 {[%emt 0:00:32]} Be8 {[%emt 0:01:09]} 45. Kb2 {[%emt 0:01:34]} Bg6 {[%emt 0:00:29]} 46. Kc1 {[%emt 0:00:43]} Kd7 {[%emt 0:01:04]} 47. Kb2 {[%emt 0:00:19]} Bf7 {[%emt 0:00:28]} 48. Ka2 {[%emt 0:01:34]} Kc6 {[%emt 0:00:24]} 49. Kb2 {[%emt 0:00:31]} Kb5 {[%emt 0:01:12]} 50. Bh3 {[%emt 0:01:14]} h5 {[%emt 0:01:54]} 51. g4 {[%emt 0:01:30]} hxg4 {[%emt 0:00:41]} 52. Bxg4 {[%emt 0:00:08]} Ka4 {[%emt 0:00:34]} 53. f5 {[%emt 0:00:50]} exf5 {[%emt 0:02:25]} 54. Bxf5 {[%emt 0:00:18]} Kb5 {[%emt 0:01:31]} 55. Bd7+ {[%emt 0:00:15]} Kb6 {[%emt 0:00:46]} 56. e6 {[%emt 0:00:08]} Bxe6 {[%emt 0:00:12]} 57. Bxe6 {[%emt 0:00:06]} Kc6 {[%emt 0:00:03]} 58. Bg8 {[%emt 0:00:09]} Kd6 {[%emt 0:00:06]} 59. Kc1 {[%emt 0:01:10]} Kc6 {[%emt 0:00:19]} 60. Kd2 {[%emt 0:00:23]} Kd6 {[%emt 0:00:18]} 61. Ke3 {[%emt 0:00:57]} Kc6 {[%emt 0:00:12]} 62. Kf4 {[%emt 0:00:30]} c3 {[%emt 0:00:35]} 63. Bh7 {[%emt 0:01:07]} Kd6 {[%emt 0:00:15]} 64. Bd3 {[%emt 0:00:21]} Ke6 {[%emt 0:00:10]} 65. Kg5 {[%emt 0:00:41]} Kd6 {[%emt 0:00:32]} 66. Kf6 {[%emt 0:00:11]} Kc6 {[%emt 0:00:05]} 67. Ke6 {[%emt 0:00:06]} 1-0

[Event "EYCC 2017"]
[Site "Mamaia"]
[Date "2017.09.05"]
[Round "1"]
[White "Alexandru, Stefan"]
[Black "Royal, Shreyas"]
[Result "1-0"]
[ECO "E70"]
[WhiteElo "1777"]
[BlackElo "1724"]
[Annotator "NA RC"]
[PlyCount "67"]
[EventDate "2017.??.??"]
[EventType "swiss"]
[EventCountry "ROU"]
[SourceTitle "playchess.com"]
[Source "ChessBase"]
[SourceQuality "1"]
[TimeControl "40/5400+30:1800+30"]

1. d4 {[%emt 0:00:00]} Nf6 {[%emt 0:00:20]} 2. c4 {[%emt 0:00:13]} g6 {[%emt 0:00:07]} 3. Nc3 {[%emt 0:00:20]} Bg7 {[%emt 0:00:14]} 4. e4 {[%emt 0:00:35]} d6 {[%emt 0:00:20]} 5. Nge2 {[%emt 0:00:44]} Nbd7 {[%emt 0:00:14]} 6. Ng3 {[%emt 0:01:12]} O-O {[%emt 0:00:33]} 7. Be2 {[%emt 0:00:51]} e5 {[%emt 0:00:32]} 8. d5 {[%emt 0:00:31]} Nc5 {[%emt 0:01:07]} 9. h4 {[%emt 0:00:26]} h5 {[%emt 0:01:03]} 10. Bg5 {[%emt 0:00:24]} Qd7 {[%emt 0:01:40]} 11. Qd2 {[%emt 0:01:16]} Re8 {[%emt 0:00:52]} 12. b4 {[%emt 0:01:31]} Na6 {[%emt 0:00:21]} 13. a3 {[%emt 0:00:10]} c6 {[%emt 0:01:58]} 14. dxc6 {[%emt 0:00:30]} bxc6 {[%emt 0:01:36]} 15. Rd1 {[%emt 0:01:50]} Re6 {[%emt 0:02:05]} 16. c5 {[%emt 0:01:34]} d5 {[%emt 0:02:34]} 17. exd5 {[%emt 0:00:13]} cxd5 {[%emt 0:01:06]} 18. Bxf6 {[%emt 0:00:16]} d4 {[%emt 0:00:53]} 19. Bxg7 {[%emt 0:00:22]} Kxg7 {[%emt 0:01:01]} 20. Nce4 {[%emt 0:00:25]} Bb7 {[%emt 0:01:55]} 21. b5 {[%emt 0:00:35]} Nc7 {[%emt 0:01:08]} 22. c6 {[%emt 0:00:07]} Bxc6 {[%emt 0:00:51]} 23. bxc6 {[%emt 0:00:06]} Qxc6 24. Bf3 Re7 {[%emt 0:13:18]} 25. Rc1 {[%emt 0:01:24]} Qa6 {[%emt 0:04:29]} 26. Nc5 {[%emt 0:01:45]} Qxa3 {[%emt 0:01:43]} 27. Bxa8 {[%emt 0:00:06]} Nxa8 28. O-O Rc7 {[%emt 0:01:15]} 29. Nge4 {[%emt 0:01:08]} f5 {[%emt 0:00:27]} 30. Ne6+ {[%emt 0:00:04]} Kh7 31. N4g5+ Kh6 {[%emt 0:05:28]} 32. Nxc7 {[%emt 0:00:36]} Nxc7 {[%emt 0:00:13]} 33. Rxc7 {[%emt 0:00:05]} Qd6 {[%emt 0:01:25]} 34. Rh7# 1-0

[Event "EYCC 2017"]
[Site "Mamaia"]
[Date "2017.09.05"]
[Round "1"]
[White "Rubsamen, Anais"]
[Black "Berdnyk, Mariia"]
[Result "0-1"]
[ECO "A04"]
[WhiteElo "1738"]
[BlackElo "2055"]
[Annotator "NA RC"]
[PlyCount "70"]
[EventDate "2017.??.??"]
[EventType "swiss"]
[EventCountry "ROU"]
[SourceTitle "playchess.com"]
[Source "ChessBase"]
[SourceQuality "1"]
[TimeControl "40/5400+30:1800+30"]

1. Nf3 {[%emt 0:00:00]} c5 {[%emt 0:00:03]} 2. g3 {[%emt 0:01:15]} Nc6 {[%emt 0:00:04]} 3. d3 {[%emt 0:01:15]} d5 {[%emt 0:00:29]} 4. Nbd2 {[%emt 0:03:41]} e5 {[%emt 0:00:41]} 5. Bg2 {[%emt 0:04:39]} Nf6 {[%emt 0:02:33]} 6. e4 {[%emt 0:00:26]} d4 {[%emt 0:00:45]} 7. O-O {[%emt 0:07:34]} Bd6 {[%emt 0:00:51]} 8. Nc4 {[%emt 0:18:31]} Bc7 {[%emt 0:00:24]} 9. a4 {[%emt 0:07:20]} Be6 {[%emt 0:12:37]} 10. Na3 {[%emt 0:17:25]} a6 {[%emt 0:07:46]} 11. Bd2 {[%emt 0:11:30]} h6 {[%emt 0:05:30]} 12. h3 {[%emt 0:06:02]} O-O {[%emt 0:06:18]} 13. Ne1 {[%emt 0:02:42]} Qd7 {[%emt 0:05:29]} 14. Kh2 {[%emt 0:00:16]} Nh7 {[%emt 0:01:03]} 15. f4 {[%emt 0:02:48]} f5 {[%emt 0:02:26]} 16. exf5 {[%emt 0:10:27]} Rxf5 {[%emt 0:01:27]} 17. Be4 {[%emt 0:00:45]} Rf6 {[%emt 0:06:28]} 18. f5 {[%emt 0:00:53]} Bxf5 {[%emt 0:04:47]} 19. Bxf5 {[%emt 0:00:06]} Rxf5 {[%emt 0:01:30]} 20. Qg4 {[%emt 0:00:12]} Rf7 {[%emt 0:04:10]} 21. Qxd7 {[%emt 0:01:03]} Rxd7 {[%emt 0:00:03]} 22. Nf3 {[%emt 0:00:29]} Rf8 {[%emt 0:00:56]} 23. Rae1 {[%emt 0:01:18]} Rdf7 {[%emt 0:02:46]} 24. Kg2 {[%emt 0:00:10]} Nf6 {[%emt 0:01:45]} 25. Nc4 {[%emt 0:01:10]} Nd5 {[%emt 0:00:31]} 26. Rf2 {[%emt 0:00:26]} b5 {[%emt 0:03:06]} 27. axb5 {[%emt 0:00:19]} axb5 {[%emt 0:00:04]} 28. Na3 {[%emt 0:00:04]} Ba5 {[%emt 0:00:36]} 29. Bxa5 {[%emt 0:00:22]} Ne3+ {[%emt 0:00:18]} 30. Kg1 {[%emt 0:01:14]} Nxa5 {[%emt 0:00:22]} 31. Ree2 {[%emt 0:00:37]} Rxf3 {[%emt 0:00:12]} 32. Rxf3 {[%emt 0:00:20]} Rxf3 {[%emt 0:00:05]} 33. Kh2 {[%emt 0:00:06]} b4 {[%emt 0:00:39]} 34. Nb5 {[%emt 0:00:35]} c4 {[%emt 0:00:30]} 35. dxc4 {[%emt 0:00:47]} b3 {[%emt 0:01:07]} 0-1